Cogmind - Beta 15 @@@ ROGUE MODE // 2025.07.21 @ 16:25:40 Player: shapeshifter Result: Destroyed by D-53 Grenadier with Mini Grenade Launcher Performance ------------- Evolutions (0) 0 Regions Visited (2) 400 Robots Destroyed (24) 120 Value Destroyed (289) 289 Prototype IDs (0) 0 Alien Tech Used (0) 0 Bonus (0) 0 TOTAL SCORE: 809 Bonus ------- None Cogmind --------- Core Integrity 0/250 Matter 295/300 Energy 100/100 System Corruption 0% Temperature Cool (0) Movement Core (100) Ox1 Location -10/Mines Parts ------- > --- POWER (1) -------- (None) > --- PROPULSION (2) --- (None) > --- UTILITY (2) ------ Small Storage Unit > --- WEAPON (2) ------- Small Laser > --- INVENTORY (8) ---- Improved Ion Engine Improved Ion Engine Wheel Wheel Medium Battery (150) Particle Cannon Peak State ------------ > --- POWER ------------ Improved Ion Engine > --- PROPULSION ------- Aluminum Leg Aluminum Leg > --- UTILITY ---------- Small Storage Unit Seismic Detector > --- WEAPON ----------- Small Laser Particle Cannon > --- INVENTORY -------- Improved Ion Engine Improved Ion Engine Wheel Wheel Compact Wheel Compact Wheel Medium Battery Particle Cannon [Rating: 10] Favorites ----------- Power Ion Engine Engine Ion Engine Propulsion Light Treads Treads Light Treads Leg Aluminum Leg Wheel Compact Wheel Utility Small Storage Unit Device Seismic Detector Storage Small Storage Unit Weapon Light Assault Rifle Energy Gun Small Laser Energy Cannon Beam Cannon Ballistic Gun Light Assault Rifle Build | -11 -10 -10 ------- Run | Yrd Mat Min Slots Evolved . | . . . Power . | . . . Propulsion . | . . . Utility . | . . . Weapon . | . . . Parts Attached 16 | 8 6 2 Power 3 | 1 2 . Engine 3 | 1 2 . Core . | . . . Reactor . | . . . Propulsion 6 | 3 1 2 Treads 2 | 2 . . Leg 2 | 1 1 . Wheel 2 | . . 2 Hover . | . . . Flight . | . . . Utility 2 | 2 . . Device 1 | 1 . . Storage 1 | 1 . . Processor . | . . . Hackware . | . . . Protection . | . . . Artifact . | . . . Weapon 5 | 2 3 . Energy Gun 2 | 1 1 . Energy Cannon 2 | . 2 . Ballistic Gun 1 | 1 . . Ballistic Cannon . | . . . Launcher . | . . . Special Weapon . | . . . Impact Weapon . | . . . Slashing Weapon . | . . . Piercing Weapon . | . . . Special Melee Weapon . | . . . Unidentified Prototypes . | . . . Parts Lost 9 | . 2 7 Power 1 | . . 1 Propulsion 5 | . 1 4 Utility 1 | . . 1 Weapon 2 | . 1 1 Highest Loss Streak 7 | . 2 7 To Critical Strikes . | . . . Average Backups 7 | 5 7 8 Power 1 | . 1 2 Propulsion 3 | 3 4 4 Utility . | . . 1 Weapon . | . . 1 Tool/Special . | . . . Unused Backups 9 | . 3 6 Power 3 | . 1 2 Propulsion 3 | . 1 2 Utility 1 | . . 1 Weapon 1 | . . 1 Tool/Special 1 | . 1 . Average Slot Usage (%) 97 | . 98 82 Engine 13 | . 14 11 Treads 15 | . 17 . Leg 11 | . 9 22 Device 13 | . 14 8 Storage 14 | . 14 14 Energy Gun 9 | . 8 14 Energy Cannon 7 | . 7 11 Ballistic Gun 10 | . 11 . Peak Build Rating 10 | 7 10 10 Average Rating 6 | 5 7 8 On Entrance 5 | . 7 10 Naked Turns . | . . . Heaviest Build 18 | 13 18 18 Greatest Support 40 | 40 40 20 Greatest Overweight (x) 3 | 3 . 1 Average Overweight (x) . | . . . Largest Inventory Capacity 8 | 8 8 8 Average Capacity 7 | 7 8 8 Most Carried 8 | 8 8 8 Average Carried 7 | 5 7 7 Final Capacity 8 | 8 8 8 Final Carried 8 | 6 8 6 Class Distribution -------------------- 100% | Mutant Dominant Class ---------------- Mutant | -10/Materials Mutant | -10/Mines Resources | -11 -10 -10 ----------- Run | Yrd Mat Min Matter Collected 407 | 284 103 20 Remotely . | . . . Salvage Created 715 | 92 580 43 Parts 42 | 13 25 4 Haulers Intercepted 1 | . 1 . Recyclers Shooed 2 | 1 1 . Parts Field Recycled . | . . . Retrieved Matter . | . . . Parts Self-Destructed . | . . . Prevented . | . . . Kills | -11 -10 -10 ------- Run | Yrd Mat Min Combat Hostiles Destroyed 13 | . 10 3 Guns 5 | . 3 2 Cannons 8 | . 7 1 Classes Destroyed 7 | 1 6 . Worker 2 | . 2 . Tunneler 4 | 4 . . Hauler 1 | . 1 . Recycler 3 | . 3 . Mechanic 1 | . 1 . Swarmer 9 | . 6 3 Grunt 4 | . 4 . Best Kill Streak 10 | 1 10 3 Combat Bots Only 6 | . 6 3 Max Kills in Single Turn 2 | 1 2 1 Gunslinging . | . . . Exploded . | . . . Melee . | . . . Uniques/NPCs Destroyed . | . . . Combat | -11 -10 -10 -------- Run | Yrd Mat Min Hostile Shots Fired 121 | . 84 37 Missed 18 | . 12 6 Hits 103 | . 72 31 Projectile 103 | . 72 31 AOE 16 | . . 16 Damage Taken 1351 | . 632 719 Core 280 | . 84 196 Absorbed by Shields . | . . . Core Remaining (%) 100 | 100 . . Volleys Fired 61 | 14 41 6 Largest 2 | 2 2 2 Hottest 108 | 60 80 108 Shots Fired 121 | 28 81 12 Gun 81 | 28 47 6 Cannon 40 | . 34 6 Launcher . | . . . Special . | . . . Kinetic 55 | 14 41 . Thermal 66 | 14 40 12 Explosive . | . . . Electromagnetic . | . . . Robot Hit Streak 11 | 7 11 2 Robot Miss Streak 5 | 2 5 3 Penetration Max . | . . . Secondary Targets . | . . . Shots Hit Robots 70 | 19 47 4 Core Hits 33 | 5 25 3 Critical Kills . | . . . Critical Parts Destroyed . | . . . Critical Strikes . | . . . Melee Attacks . | . . . Impact . | . . . Slashing . | . . . Piercing . | . . . Sneak Attacks . | . . . Combat Hostiles . | . . . Follow-up Attacks . | . . . Damage Inflicted 937 | 181 693 63 Guns 441 | 181 238 22 Cannons 496 | . 455 41 Explosions . | . . . Melee . | . . . Ramming . | . . . Kinetic 268 | 75 193 . Thermal 669 | 106 500 63 Explosive . | . . . Electromagnetic . | . . . Impact . | . . . Slashing . | . . . Piercing . | . . . Highest Corruption . | . . . Average Corruption . | . . . Corruption Purged . | . . . Corruption Blocked . | . . . Overload Shots . | . . . Overflow Damage . | . . . Projectiles . | . . . Explosions . | . . . Melee . | . . . Knockbacks . | . . . Impact . | . . . Kinetic . | . . . Secondary . | . . . Self-Inflicted Damage . | . . . Shots . | . . . Rammed . | . . . Targets Rammed . | . . . Kicked . | . . . Crushed . | . . . Highest Temperature 322 | 60 322 306 Average Temperature 111 | 23 121 155 Received Heat Transfer 132 | . 84 48 Siege Activations . | . . . Martial Activations . | . . . Shielding Activations . | . . . Robots Disrupted . | . . . Combat Hostiles . | . . . Robots Corrupted . | . . . Combat Hostiles . | . . . Parts Fried . | . . . Impact Corruptions . | . . . Robots Melted . | . . . Combat Hostiles . | . . . Parts Melted 2 | . 1 1 Heat Transferred 1436 | 250 1062 124 Parts Sabotaged . | . . . Parts Stolen . | . . . Parts Stripped . | . . . Power Chain Reactions . | . . . Alert | -11 -10 -10 ------- Run | Yrd Mat Min Maximum Alert Level 1 | . 1 . Low Security (%) 92 | 100 87 100 Level 1 7 | . 12 . Level 2 . | . . . Level 3 . | . . . Level 4 . | . . . Level 5 . | . . . High Security . | . . . Max Security . | . . . Peak Influence 217 | 5 217 127 Initial 57 | . . 57 Average 62 | 1 91 94 Influence Increases 434 | 20 344 70 Destroy 0b10 Robot/C 260 | . 200 60 Destroy 0b10 Robot/NC 55 | 20 35 . Destroy Leader 32 | . 22 10 Successful Hack 11 | . 11 . Destroy Structure 1 | . 1 . Lose Combat Pursuer 75 | . 75 . Influence Decreases 387 | 20 196 171 Entered New Map 91 | . . 91 Time Decay 206 | 20 176 10 Lost Part 90 | . 20 70 Squads Dispatched 1 | . 1 . Investigation 1 | . 1 . Extermination . | . . . Reinforcement . | . . . Assault . | . . . Garrison . | . . . Intercept . | . . . Searches Triggered . | . . . Construction Impeded . | . . . Haulers Reinforced . | . . . Active Scanning Responses . | . . . Cargo Convoy Interrupts . | . . . Stealth | -11 -10 -10 --------- Run | Yrd Mat Min Distress Signals 1 | . 1 . Communications Jammed . | . . . Distress Signals . | . . . Times Spotted 26 | . 19 7 Peak Tracking Total 8 | . 8 4 Tactical Retreats 2 | . 2 . Traps | -11 -10 -10 ------- Run | Yrd Mat Min Traps Triggered 1 | . 1 . Indirectly . | . . . Trap Hack Attempts . | . . . Triggered . | . . . Disarmed . | . . . Reprogrammed . | . . . Reused . | . . . Traps Extracted . | . . . Installed . | . . . Triggered . | . . . Machines | -11 -10 -10 ---------- Run | Yrd Mat Min Machines Disabled . | . . . Max in Single Turn . | . . . Machines Repaired . | . . . Machines Dismantled . | . . . Machines Sabotaged . | . . . Overloaded Fab Kills . | . . . Hacking | -11 -10 -10 --------- Run | Yrd Mat Min Machines Accessed 2 | . 2 . Terminals 2 | . 2 . Fabricators . | . . . Repair Stations . | . . . Recycling Units . | . . . Scanalyzers . | . . . Garrison Access . | . . . Total Hacks 8 | . 8 . Successful 3 | . 3 . Failed 5 | . 5 . Catastrophic . | . . . Database Lockouts . | . . . Manual 4 | . 4 . Terminals 8 | . 8 . Fabricators . | . . . Repair Stations . | . . . Recycling Units . | . . . Scanalyzers . | . . . Garrison Access . | . . . Terminal Hacks 2 | . 2 . Branch Access Points 1 | . 1 . Dispatch Records 1 | . 1 . Fabricator Hacks . | . . . Repair Station Hacks . | . . . Recycling Unit Hacks . | . . . Scanalyzer . | . . . Garrison Access Hacks . | . . . Unauthorized Hacks 1 | . 1 . Terminals 1 | . 1 . Botnet 1 | . 1 . Fabricators . | . . . Repair Stations . | . . . Recycling Units . | . . . Scanalyzers . | . . . Garrison Access . | . . . Data Cores Recovered . | . . . Used . | . . . Hacking Detections 2 | . 2 . Full Trace Events . | . . . Feedback Events . | . . . Feedback Blocked . | . . . Robot Schematics Acquired . | . . . Robots Built . | . . . Authchips . | . . . Time . | . . . Total Robot Build Rating . | . . . Part Schematics Acquired . | . . . Parts Built . | . . . Authchips . | . . . Time . | . . . Total Part Build Rating . | . . . Parts Repaired . | . . . Time . | . . . Parts Recycled . | . . . Recycled Matter . | . . . Retrieved Matter . | . . . Retrieved Components . | . . . Parts Scanalyzed . | . . . Part Schematics Acquired . | . . . Parts Damaged . | . . . Bothacking | -11 -10 -10 ------------ Run | Yrd Mat Min Used RIF Installer . | . . . Robots Hacked . | . . . Non-combat . | . . . Combat . | . . . Robot Hacks Applied . | . . . Relay Couplers Released . | . . . Fabnet Peak Effective % . | . . . Robots Rewired . | . . . Allies Hacked . | . . . Hacks Repelled . | . . . Allies | -11 -10 -10 -------- Run | Yrd Mat Min Total Allies . | . . . Largest Group . | . . . Highest-Rated Group . | . . . Highest-Rated Ally . | . . . Total Orders . | . . . Ally Attacks . | . . . Total Damage . | . . . Kills . | . . . Allies Corrupted . | . . . Allies Melted . | . . . Intel | -11 -10 -10 ------- Run | Yrd Mat Min Active Infowar (turns) 472 | 28 421 23 Seismic 472 | 28 421 23 Robot Analysis Total . | . . . Derelict Logs Recovered . | . . . Drone Launches . | . . . Drone Recoveries . | . . . Exploration | -11 -10 -10 ------------- Run | Yrd Mat Min Turns Passed 680 | 221 421 38 Spaces Moved 323 | 112 196 15 Core 21 | 19 . 2 Treads 183 | 93 90 . Legs 116 | . 106 10 Wheels 3 | . . 3 Hover . | . . . Flight . | . . . Fastest Speed 50 | 50 120 100 Average Speed 139 | 144 138 118 Slowest Speed 200 | 200 160 190 Overloaded Moves . | . . . Propulsion Burnouts . | . . . Robots Hopped . | . . . Potential Cave-ins . | . . . Cave-ins Triggered . | . . . Exploration Rate (%) 17 | 6 34 13 Regions Visited 2 Branch Regions 1 Pre-discovered Areas . | . . . Known Exits Taken 1 | . 1 . Unknown Exits Taken 1 | 1 . . Scrap Searched . | . . . Spaces Dug . | . . . Terrain Destroyed . | . . . Melee . | . . . Projectile . | . . . AOE . | . . . Terrain Rammed . | . . . Walls Destroyed . | . . . Machines Disabled . | . . . Actions | -11 -10 -10 --------- Run | Yrd Mat Min Total 443 | 146 274 23 Wait 11 | . 11 . Move 321 | 111 195 15 Hop . | . . . Pick Up 23 | 12 11 . Fast Attach 2 | 1 1 . Attach 11 | 7 2 2 Detach 1 | 1 . . Swap 5 | . 5 . Drop 8 | . 8 . Fire 61 | 14 41 6 Melee . | . . . Ram . | . . . Kick . | . . . Crush . | . . . Escape Stasis . | . . . Rewire . | . . . Trap . | . . . Miscellaneous . | . . . Route ------- -11/Scrapyard -10/Materials (discovered 2 exits: *Min x2) -10/Mines History --------- Turn | Location | Event 7 | -11/Scrapyard | Discovered new exit (range 15) 222 | -11/Scrapyard | Entered Materials 294 | -10/Materials | Identified exit to Mines 334 | -10/Materials | Build established: Mutant 643 | -10/Materials | Entered Mines 644 | -10/Mines | Assembled infested the area 669 | -10/Mines | Core integrity fell below 50% 677 | -10/Mines | Core integrity fell below 20% 681 | -10/Mines | Destroyed by D-53 Grenadier with Mini Grenade Launcher Last Messages --------------- 00664_ Acquired 8 matter. 00664_ C-30 ARC bursts open, deploying its payload. 00664_ D-53 Grenadier unfolds itself. 00666_ Seismic Detector destroyed. 00668_ The unstable cave ceiling collapses. 00672_ Particle Cannon destroyed. 00672_ Aluminum Leg destroyed. 00673_ The unstable cave ceiling collapses. 00673_ U-05 Engineer builds a Wall. 00674_ The unstable cave ceiling collapses. 00674_ Aluminum Leg destroyed. 00675_ The unstable cave ceiling collapses. 00676_ Com. Wheel destroyed. 00678_ U-05 Engineer builds a Wall. 00679_ The unstable cave ceiling collapses. 00679_ Com. Wheel destroyed. 00679_ Imp. Ion Engine destroyed. 00680_ U-05 Engineer builds a Wall. 00681_ The unstable cave ceiling collapses. Map ----- +----------------------------------------------------+ | ?????????????????????????????????????????????????? | | ?????????????????????????????????????????????????? | | ?????????????????????????????????????????????????? | | ?????????????????????????????????????????????????? | | ?????????????? ???????????????????????????????? | | ???????????? ???????????????????????????????? | | ????????????? #??????????????????????????????? | | ?????????????# ####??????????????????????????? | | ?????????????# ##??????????##?????????????? | | ?????????????# #????????? ?????????????? | | ?????????????# #???????? ?????????????? | | ??????????????# ##??????# ##?????????????? | | ??????????????? #????## ###???????????? | | ???????????????# ###?# ##??????????? | | ???????????????# ##g #? #??????????? | | ???????????????# # # ## ??????????? | | ???????????????# # # ?????????? | | ???????????????# # # ??????????? | | ??????########## # #?????????????? | | ??????# % d #??????????????? | | ??????# d [ #???????????????? | | ??????# ####### t ##???????????????? | | ???????????????## ##????????????????? | | ????????????????## #?????????????????? | | ?????????????????#### #?????????????????? | | ????????????????????# @ ###?????????????????? | | ????????????????????## # #???????????????????? | | ?????????????????????#### ###???????????????????? | | ????????????????????????# ##?????????????????????? | | ????????????????????????# #??????????????????????? | | ????????????????????????# #??????????????????????? | | ????????????????????????# #??????????????????????? | | ????????????????????????# #??????????????????????? | | ????????????????????????# #??????????????????????? | | ????????????????????????? ???????????????????????? | | ????????????????????????? ???????????????????????? | | ????????????????????????? ???????????????????????? | | ?????????????????????????#???????????????????????? | | ?????????????????????????????????????????????????? | | ?????????????????????????????????????????????????? | | ?????????????????????????????????????????????????? | | ?????????????????????????????????????????????????? | | ?????????????????????????????????????????????????? | | ?????????????????????????????????????????????????? | | ?????????????????????????????????????????????????? | | ?????????????????????????????????????????????????? | | ?????????????????????????????????????????????????? | | ?????????????????????????????????????????????????? | | ?????????????????????????????????????????????????? | | ?????????????????????????????????????????????????? | +----------------------------------------------------+ Best States ------------- Heat Dissipation 25 Energy Generation 12 Energy Capacity 265 Matter Stores 300 Matter Capacity 300 Sight Range 16 Terrain Scan Density 10 Evasion (%) 55 Recoil Reduction 2 Item Schematics ----------------- None Robot Schematics ------------------ None Fabricated ------------ Nothing Repaired ---------- Nothing Alien Tech Used ----------------- None Achievements -------------- None Challenges ------------ None Game ------ Seed ShadingPulseSource Manual? 0 Play Time 00:18:01 Cumulative 28.2 hours Start 2025.07.21 @ 15:56:04 End 2025.07.21 @ 16:25:40 Sessions 1 Manual Loads 0 Difficulty Rogue Special Mode None Game No. 74 Rogue 74 Adventurer 0 Explorer 0 Win Type - Total 0 Types 0/0/0/0/0/0/0/0/0/0 Lore% 25 Gallery% 30 Achievement% 23 Wizard Run 0 Options --------- Layout 1 ASCII 0 Keyboard 0 Movement Mouse Keybinds 0 Fullscreen 1 Font 24/Smallcaps Map View 50x35 Zoom Use 0% Tactical HUD 1 Map Filters NONE Filters NONE Steam 1 RUN: 5a67a8ec-d0ad-4215-8c67-4f1b347f8fd3